fUST/lending_fUST_20240819
["ID","MTS","AMOUNT","RATE_DAILY","PERIOD"]
[335283872,1724068243574,-560.55728956,0.00016428,2]
[335283897,1724068246371,-277.60309098,0.00016428,2]
[335283916,1724069154155,-13972.66543778,0.0002,15]
[335283917,1724069154533,-3542.33456222,0.00022,30]
[335283918,1724069248294,-1892.28247169,0.00012629,3]
[335283929,1724069370130,-300.0,0.00012628,2]
[335283930,1724069370152,-300.0,0.00012628,2]
[335283931,1724069370175,-16318.75386369,0.00012629,2]
[335283932,1724069370195,-850.51877308,0.00012934,2]
[335283933,1724069370216,-175.19105366,0.00013025,2]
[335283934,1724069370238,-24900.0,0.00013521,2]
[335283935,1724069370260,-193.02203606,0.00013599,2]
[335283936,1724069370284,-1591.69654389,0.00013698,2]
[335283937,1724069370306,-788.747516,0.00013699,2]
[335283938,1724069370328,-194.82337617,0.00013699,2]
[335283939,1724069370350,-846.8556443,0.00013792,2]
[335283940,1724069370371,-1075.03773202,0.00013792,2]
[335283941,1724069370392,-464.3990985,0.00013792,2]
[335283942,1724069370413,-300.0,0.00013854,2]
[335283943,1724069370433,-420.0,0.00013891,2]
[335283944,1724069370455,-898.59338305,0.00013971,2]
[335283945,1724069370477,-166.666669,0.00014032,2]
[335283946,1724069370497,-154.80649189,0.00014059,2]
[335283947,1724069370518,-192.0011942,0.00014145,2]
[335283948,1724069370539,-246.782863,0.00014247,2]
[335283949,1724069370562,-166.666669,0.00014398,2]
[335283950,1724069370582,-389.39621902,0.00014519,3]
[335283951,1724069370602,-2854.1170092,0.00014519,2]
[335283983,1724069432345,-166.666669,0.00015313,2]
[335283985,1724069432357,-43.58693897,0.0001589,2]
[335284010,1724069438484,-366.56041503,0.0001589,2]
[335284011,1724069438494,-903.35259085,0.0001594,2]
[335284012,1724069438593,-4425.34365721,0.0001594,2]
[335284013,1724069438605,-300.0,0.00016043,2]
[335284014,1724069438614,-574.18002641,0.00016181,2]
[335284015,1724069438624,-469.32733922,0.00016199,2]
[335284016,1724069438635,-13727.86749964,0.000163,2]
[335284017,1724069438644,-2000.0,0.00016317,2]
[335284018,1724069438653,-10103.78748947,0.00016328,2]
[335284019,1724069438663,-3201.55994915,0.00016338,2]
[335284020,1724069438672,-254.5225119,0.00016397,2]
[335284021,1724069438681,-500.0,0.00016397,2]
[335284022,1724069438698,-500.0,0.00016397,2]
[335284023,1724069438713,-333.09321168,0.00016397,2]
[335284024,1724069438723,-500.0,0.00016397,2]
[335284025,1724069438735,-500.0,0.00016397,2]
[335284026,1724069438745,-87.99198206,0.00016397,2]
[335284033,1724069440845,-412.00801794,0.00016397,2]
[335284034,1724069440855,-25331.04386816,0.00016398,2]
[335284035,1724069440865,-3500.0,0.000164,2]
[335284036,1724069440875,-26536.2915615,0.00016414,2]
[335284037,1724069440885,-9679.60148479,0.00016424,2]
[335284038,1724069440895,-203.66534114,0.00016427,2]
[335284039,1724069440905,-5993.21173941,0.00016427,2]
[335284040,1724069440917,-800.919999,0.00016428,2]
[335284041,1724069440927,-185754.04093,0.00016428,2]
[335284042,1724069440938,-500.0,0.00016438,2]
[335284043,1724069440949,-500.0,0.00016438,2]
[335284044,1724069440961,-502.1182078,0.00016438,2]
[335284045,1724069440971,-500.0,0.00016438,2]
[335284046,1724069440982,-500.0,0.00016438,2]
[335284047,1724069440993,-500.0,0.00016438,2]
[335284048,1724069441005,-553.08361029,0.00016438,2]
[335284049,1724069441018,-500.0,0.00016438,2]
[335284050,1724069441030,-503.77957695,0.00016438,2]
[335284051,1724069441042,-521.11,0.00016438,2]
[335284052,1724069441054,-500.0,0.00016438,2]
[335284053,1724069441063,-504.54717516,0.00016438,2]
[335284054,1724069441074,-500.0,0.00016438,2]
[335284055,1724069441083,-500.0,0.00016438,2]
[335284056,1724069441093,-500.0,0.00016438,2]
[335284057,1724069441111,-500.0,0.00016438,2]
[335284058,1724069441120,-500.0,0.00016438,2]
[335284059,1724069441130,-500.0,0.00016438,2]
[335284060,1724069441140,-500.0,0.00016438,2]
[335284061,1724069441149,-506.96594774,0.00016438,2]
[335284062,1724069441159,-500.0,0.00016438,2]
[335284063,1724069441169,-500.0,0.00016438,2]
[335284064,1724069441179,-500.0,0.00016438,2]
[335284065,1724069441189,-500.0,0.00016438,2]
[335284066,1724069441199,-500.0,0.00016438,2]
[335284067,1724069441209,-500.0,0.00016438,2]
[335284068,1724069441218,-500.0,0.00016438,2]
[335284069,1724069441228,-500.0,0.00016438,2]
[335284070,1724069441238,-500.0,0.00016438,2]
[335284071,1724069441248,-500.0,0.00016438,2]
[335284072,1724069441258,-500.0,0.00016438,2]
[335284073,1724069441268,-509.07845781,0.00016438,2]
[335284074,1724069441277,-500.0,0.00016438,2]
[335284075,1724069441287,-500.0,0.00016438,2]
[335284076,1724069441299,-510.09561215,0.00016438,2]
[335284077,1724069441310,-534.06480775,0.00016438,2]
[335284078,1724069441320,-775.16,0.00016438,2]
[335284079,1724069441330,-503.44384709,0.00016438,2]
[335284080,1724069441341,-500.0,0.00016438,2]
[335284081,1724069441353,-668.62,0.00016438,2]
[335284082,1724069441363,-286.34405162,0.00016438,2]
[335284083,1724069441374,-500.0,0.00016438,2]
[335284084,1724069441384,-632.17,0.00016438,2]
[335284085,1724069441394,-500.0,0.00016438,2]
[335284086,1724069441403,-500.0,0.00016438,2]
[335284087,1724069441417,-500.0,0.00016438,2]
[335284088,1724069441427,-500.0,0.00016438,2]
[335284089,1724069441436,-500.0,0.00016438,2]
[335284090,1724069441447,-500.0,0.00016438,2]
[335284091,1724069441456,-500.0,0.00016438,2]
[335284092,1724069441467,-500.0,0.00016438,2]
[335284093,1724069441477,-570.18698218,0.00016438,2]
[335284094,1724069441487,-731.12,0.00016438,2]
[335284095,1724069441497,-500.0,0.00016438,2]
[335284096,1724069441507,-633.28,0.00016438,2]
[335284097,1724069441517,-202.73368526,0.00016438,2]
[335284098,1724069441527,-500.0,0.00016438,2]
[335284099,1724069441538,-500.0,0.00016438,2]
[335284100,1724069441548,-500.0,0.00016438,2]
[335284101,1724069441558,-500.0,0.00016438,2]
[335284102,1724069441568,-593.02,0.00016438,2]
[335284103,1724069441578,-500.0,0.00016438,2]
[335284104,1724069441588,-500.0,0.00016438,2]
[335284105,1724069441599,-518.09331574,0.00016438,2]
[335284106,1724069441609,-500.0,0.00016438,2]
[335284107,1724069441618,-500.0,0.00016438,2]
[335284108,1724069441629,-500.0,0.00016438,2]
[335284109,1724069441638,-500.0,0.00016438,2]
[335284110,1724069441648,-656.84,0.00016438,2]
[335284111,1724069441658,-500.0,0.00016438,2]
[335284112,1724069441668,-500.0,0.00016438,2]
[335284113,1724069441678,-500.0,0.00016438,2]
[335284114,1724069441687,-500.0,0.00016438,2]
[335284115,1724069441697,-521.1,0.00016438,2]
[335284116,1724069441707,-500.0,0.00016438,2]
[335284117,1724069441717,-500.0,0.00016438,2]
[335284118,1724069441727,-500.0,0.00016438,2]
[335284119,1724069441738,-500.0,0.00016438,2]
[335284120,1724069441748,-500.0,0.00016438,2]
[335284121,1724069441758,-500.0,0.00016438,2]
[335284122,1724069441768,-500.0,0.00016438,2]
[335284123,1724069441778,-500.0,0.00016438,2]
[335284124,1724069441788,-500.0,0.00016438,2]
[335284125,1724069441797,-500.0,0.00016438,2]
[335284126,1724069441807,-500.0,0.00016438,2]
[335284127,1724069441818,-500.0,0.00016438,2]
[335284128,1724069441829,-764.51,0.00016438,2]
[335284129,1724069441840,-500.0,0.00016438,2]
[335284130,1724069441851,-375.11585732,0.00016438,2]
[335284131,1724069441861,-500.0,0.00016438,2]
[335284132,1724069441870,-625.26,0.00016438,2]
[335284133,1724069441880,-510.48820272,0.00016438,2]
[335284134,1724069441890,-500.0,0.00016438,2]
[335284135,1724069441901,-500.0,0.00016438,2]
[335284136,1724069441911,-502.10619818,0.00016438,2]
[335284137,1724069441921,-500.0,0.00016438,2]
[335284138,1724069441931,-500.0,0.00016438,2]
[335284139,1724069441941,-500.0,0.00016438,2]
[335284140,1724069441952,-500.0,0.00016438,2]
[335284141,1724069441961,-500.0,0.00016438,2]
[335284142,1724069441973,-500.0,0.00016438,2]
[335284143,1724069441983,-510.70415097,0.00016438,2]
[335284144,1724069441993,-500.0,0.00016438,2]
[335284145,1724069442003,-500.0,0.00016438,2]
[335284146,1724069442014,-500.0,0.00016438,2]
[335284147,1724069442024,-625.29,0.00016438,2]
[335284148,1724069442034,-500.0,0.00016438,2]
[335284149,1724069442044,-500.0,0.00016438,2]
[335284150,1724069442054,-500.0,0.00016438,2]
[335284151,1724069442065,-500.0,0.00016438,2]
[335284152,1724069442075,-500.0,0.00016438,2]
[335284153,1724069442085,-500.0,0.00016438,2]
[335284154,1724069442095,-500.0,0.00016438,2]
[335284155,1724069442108,-481.9584741,0.00016438,2]
[335284156,1724069442150,-18.0415259,0.00016438,2]
[335284157,1724069442159,-505.75161341,0.00016438,2]
[335284158,1724069442169,-500.0,0.00016438,2]
[335284159,1724069442179,-500.0,0.00016438,2]
[335284160,1724069442189,-528.08227156,0.00016438,2]
[335284161,1724069442199,-500.0,0.00016438,2]
[335284162,1724069442209,-502.77392858,0.00016438,2]
[335284163,1724069442219,-500.0,0.00016438,2]
[335284164,1724069442228,-500.0,0.00016438,2]
[335284165,1724069442238,-500.0,0.00016438,2]
[335284166,1724069442248,-231.77688092,0.00016438,2]
[335284611,1724069517903,194.82337617,0.00014519,2]
[335284622,1724070345130,-273.37336231,9.801e-05,2]
[335284623,1724070345153,-273.37336231,9.9e-05,2]
[335284624,1724070345177,-180.0,0.00011314,2]
[335284625,1724070345199,-254.47898882,0.00011315,2]
[335284637,1724070546096,-10839.68818478,0.00011315,2]
[335284638,1724070546118,-16318.75386369,0.00011315,2]
[335284639,1724070546139,-262.24304418,0.00012985,3]
[335284640,1724070546160,-194.82337617,0.00013699,2]
[335284641,1724070546182,-500.0,0.00013699,2]
[335284642,1724070546206,-500.0,0.00013699,2]
[335284643,1724070546227,-500.0,0.00013699,2]
[335284644,1724070546249,-500.0,0.00013699,2]
[335284645,1724070546270,-500.0,0.00013699,2]
[335284646,1724070546292,-639.64926471,0.00013699,2]
[335284647,1724070546313,-500.0,0.00013699,2]
[335284648,1724070546334,-29433.9496285,0.00014,2]
[335284649,1724070546356,-166.302903,0.00014228,2]
[335284650,1724070546379,-234.443719,0.00014247,2]
[335284651,1724070546402,-394.373758,0.00014271,2]
[335284652,1724070546424,-455.36330991,0.00014416,2]
[335284653,1724070594560,194.82337617,0.00013715,2]
[335284658,1724070610801,628.47773178,0.00014416,2]
[335284716,1724070640904,-404.40547386,0.00014415,2]
[335284717,1724070640915,-15690.27613191,0.00014416,2]
[335284718,1724070640927,-16318.75386369,0.00014416,2]
[335284719,1724070640940,-398.44289618,0.00015607,2]
[335284720,1724070640956,-200.43241264,0.00015707,7]
[335284721,1724070640975,-7895.53761022,0.0001588,2]
[335284722,1724070640986,-358.190943,0.0001589,2]
[335284723,1724070640998,-1110.9613583,0.00015904,2]
[335284724,1724070641009,-5244.78933856,0.00015931,2]
[335284725,1724070641020,-178.16575833,0.00015979,2]
[335284726,1724070641032,-500.0,0.00015979,2]
[335284727,1724070641044,-185.96777335,0.00015979,2]
[335284728,1724070641056,-500.0,0.00015979,2]
[335284729,1724070641067,-500.0,0.00015979,2]
[335284730,1724070641079,-500.0,0.00015979,2]
[335284731,1724070641090,-500.0,0.00015979,2]
[335284732,1724070641102,-500.0,0.00015979,2]
[335284733,1724070641115,-29414.47319469,0.0001598,2]
[335284734,1724070641126,-25331.04386716,0.00016,2]
[335284735,1724070641137,-953.38755458,0.00016115,2]
[335284736,1724070641148,-5328.69624806,0.00016304,2]
[335284737,1724070641159,-28754.9398202,0.00016326,2]
[335284738,1724070641170,-2000.0,0.00016328,2]
[335284739,1724070641181,-4956.5186724,0.0001633,2]
[335284740,1724070641192,-4956.5186724,0.00016332,2]
[335284741,1724070641208,-4956.5186724,0.00016334,2]
[335284742,1724070641219,-4956.5186724,0.00016336,2]
[335284743,1724070641230,-9679.60148379,0.00016336,2]
[335284744,1724070641240,-4956.5186724,0.00016338,2]
[335284745,1724070641251,-150.0,0.00016365,2]
[335284746,1724070641263,-3964.10932381,0.000164,2]
[335284747,1724070641273,-151.0,0.00016428,2]
[335284748,1724070641285,-135047.40268844,0.00016428,2]
[335284749,1724070641299,-9094.79962677,0.00016428,2]
[335284759,1724070646670,-273.37336231,9.9e-05,2]
[335284760,1724070646681,-5244.78933856,0.00015904,2]
[335284761,1724070646691,-85897.31624679,0.00016428,2]
[335284762,1724070646702,-21830.60229628,0.0001643,2]
[335284763,1724070646717,-203.66534114,0.00016437,2]
[335284764,1724070646727,-5993.21173941,0.00016437,2]
[335284765,1724070646737,-570.18698218,0.00016438,2]
[335284766,1724070646747,-500.0,0.00016438,2]
[335284767,1724070646758,-502.1182078,0.00016438,2]
[335284768,1724070646769,-500.0,0.00016438,2]
[335284769,1724070646781,-500.0,0.00016438,2]
[335284770,1724070646792,-500.0,0.00016438,2]
[335284771,1724070646804,-553.08361029,0.00016438,2]
[335284772,1724070646814,-500.0,0.00016438,2]
[335284773,1724070646825,-500.0,0.00016438,2]
[335284774,1724070646837,-503.77957695,0.00016438,2]
[335284775,1724070646847,-500.0,0.00016438,2]
[335284776,1724070646858,-500.0,0.00016438,2]
[335284777,1724070646868,-568.46,0.00016438,2]
[335284778,1724070646878,-502.8567098,0.00016438,2]
[335284779,1724070646888,-500.0,0.00016438,2]
[335284780,1724070646898,-504.54717516,0.00016438,2]
[335284781,1724070646907,-500.0,0.00016438,2]
[335284782,1724070646917,-500.0,0.00016438,2]
[335284783,1724070646928,-500.0,0.00016438,2]
[335284784,1724070646939,-500.0,0.00016438,2]
[335284785,1724070646950,-500.0,0.00016438,2]
[335284786,1724070646961,-517.75727027,0.00016438,2]
[335284787,1724070646970,-500.0,0.00016438,2]
[335284788,1724070646979,-500.0,0.00016438,2]
[335284789,1724070646989,-500.0,0.00016438,2]
[335284790,1724070647001,-500.0,0.00016438,2]
[335284791,1724070647011,-500.0,0.00016438,2]
[335284792,1724070647020,-500.0,0.00016438,2]
[335284793,1724070647031,-506.96594774,0.00016438,2]
[335284794,1724070647040,-500.0,0.00016438,2]
[335284795,1724070647050,-500.0,0.00016438,2]
[335284796,1724070647061,-500.0,0.00016438,2]
[335284797,1724070647071,-500.0,0.00016438,2]
[335284798,1724070647080,-500.0,0.00016438,2]
[335284799,1724070647091,-613.03796627,0.00016438,2]
[335284800,1724070647100,-500.0,0.00016438,2]
[335284801,1724070647111,-500.0,0.00016438,2]
[335284802,1724070647121,-500.0,0.00016438,2]
[335284803,1724070647132,-500.0,0.00016438,2]
[335284804,1724070647142,-205.75731786,0.00016438,2]
[335284805,1724070647152,-509.07845781,0.00016438,2]
[335284806,1724070647162,-500.0,0.00016438,2]
[335284807,1724070647172,-500.0,0.00016438,2]
[335284808,1724070647181,-500.0,0.00016438,2]
[335284809,1724070647190,-511.96634641,0.00016438,2]
[335284810,1724070647200,-500.0,0.00016438,2]
[335284811,1724070647211,-500.0,0.00016438,2]
[335284812,1724070647220,-500.0,0.00016438,2]
[335284813,1724070647229,-500.0,0.00016438,2]
[335284814,1724070647237,-500.0,0.00016438,2]
[335284815,1724070647246,-1190.61,0.00016438,2]
[335284816,1724070647255,-506.97821075,0.00016438,2]
[335284817,1724070647265,-500.0,0.00016438,2]
[335284818,1724070647274,-1190.61,0.00016438,2]
[335284819,1724070647283,-1190.61,0.00016438,2]
[335284820,1724070647292,-500.0,0.00016438,2]
[335284821,1724070647302,-1190.61,0.00016438,2]
[335284822,1724070647312,-1190.61,0.00016438,2]
[335284823,1724070647321,-1190.61,0.00016438,2]
[335284824,1724070647330,-1190.61,0.00016438,2]
[335284825,1724070647339,-1190.61,0.00016438,2]
[335284826,1724070647349,-1190.61,0.00016438,2]
[335284827,1724070647358,-500.0,0.00016438,2]
[335284828,1724070647367,-1190.61,0.00016438,2]
[335284829,1724070647376,-1190.61,0.00016438,2]
[335284830,1724070647385,-240.53023441,0.00016438,2]
[335284839,1724071183587,-300.0,9.318e-05,2]
[335284840,1724071183609,-300.0,9.412e-05,2]
[335284841,1724071183632,-300.0,9.7e-05,2]
[335284842,1724071183656,-11650.54879472,9.701e-05,2]
[335284844,1724071227196,-2112.50283852,9.701e-05,2]
[335284845,1724071227218,-3619.9309493,9.701e-05,2]
[335284846,1724071227241,-167.30718927,9.701e-05,2]
[335284847,1724071227264,-245.37793569,9.701e-05,2]
[335284848,1724071227288,-170.46072949,9.701e-05,2]
[335284849,1724071227310,-1511.50458572,9.701e-05,2]
[335284850,1724071227331,-4721.04600346,9.701e-05,2]
[335284851,1724071227353,-229.70554206,9.701e-05,2]
[335284852,1724071227375,-192.1557997,9.801e-05,2]
[335284853,1724071227396,-192.1557997,9.9e-05,2]
[335284854,1724071229767,177.83706653,9.604e-05,2]
[335284856,1724071239327,275.60379811,9.701e-05,2]
[335284857,1724071241193,24900.0,9.736e-05,2]
[335284859,1724071246835,16318.75386369,9.701e-05,2]
[335284860,1724071265407,405.4347584,9.701e-05,2]
[335284861,1724071269790,939.00420277,9.701e-05,2]
[335284862,1724071307154,4590.11439501,9.701e-05,2]
[335284863,1724071323631,1838.75388782,9.701e-05,2]
[335284864,1724071324012,2112.50283852,9.701e-05,2]
[335284865,1724071351846,16318.75386369,9.701e-05,2]
[335284866,1724071425002,977.23673703,9.701e-05,2]
[335284868,1724071443865,16318.75386369,9.701e-05,2]
[335284870,1724071540124,-250.0,0.00010574,2]
[335284871,1724071540163,-250.0,0.00010603,2]
[335284872,1724071540196,-250.0,0.00010632,2]
[335284873,1724071540227,-250.0,0.00010661,2]
[335284874,1724071540255,-250.0,0.0001069,2]
[335284875,1724071540284,-250.0,0.00010719,2]
[335284876,1724071540310,-145.06753502,0.00010739,2]
[335284877,1724071545874,7942.7466532,9.701e-05,2]
[335284884,1724071767181,-154.69833824,9.701e-05,2]
[335284885,1724071767202,-500.0,9.9e-05,2]
[335284886,1724071767224,-153.2102152,9.9e-05,2]
[335284887,1724071767247,-342.65845262,9.999e-05,2]
[335284888,1724071767269,-810.48415788,0.00010081,2]
[335284889,1724071767291,-810.48415788,0.00010081,2]
[335284890,1724071767324,-154.69833824,0.00010544,2]
[335284891,1724071767351,-300.0,0.00010738,2]
[335284892,1724071767374,-300.0,0.00010738,2]
[335284893,1724071767397,-521.29251267,0.00010739,2]
[335284894,1724071767418,-307.69428485,0.00010739,2]
[335284895,1724071767441,-898.70545475,0.00010739,2]
[335284896,1724071767463,-43478.74686151,0.00010739,2]
[335284936,1724071831748,-12212.17744111,0.00010164,2]
[335284938,1724071831761,-1452.74252072,0.00010164,2]
[335284944,1724071831806,-2407.12880654,0.00010164,2]
[335285036,1724071838264,-8827.95123163,0.00010164,2]
[335285037,1724071838274,-665.46668942,0.0001026,2]
[335285038,1724071838284,-55471.09586993,0.00010544,2]
[335285039,1724071838293,-195.63337011,0.00010544,2]
[335285040,1724071838302,-780.05358786,0.00010544,2]
[335285041,1724071838311,-780.05358786,0.00010544,2]
[335285042,1724071838508,-160.85673783,0.00010544,2]
[335285043,1724071838518,-180.7743733,0.00010739,2]
[335285044,1724071838528,-155.62406758,0.00010739,2]
[335285045,1724071838537,-155.01544717,0.00010739,2]
[335285046,1724071838546,-161.51677942,0.00010739,2]
[335285047,1724071838556,-301.53815771,0.00010739,2]
[335285048,1724071838567,-250.0,0.00010748,2]
[335285049,1724071838577,-250.0,0.00010777,2]
[335285050,1724071838586,-250.0,0.00010806,2]
[335285051,1724071838595,-250.0,0.00010835,2]
[335285052,1724071838605,-250.0,0.00010864,2]
[335285053,1724071838615,-250.0,0.00010893,2]
[335285054,1724071838626,-250.0,0.00010922,2]
[335285055,1724071838637,-250.0,0.00010951,2]
[335285056,1724071838649,-42411.5996467,0.00010957,2]
[335285057,1724071838658,-300.0,0.00010957,2]
[335285058,1724071838668,-300.0,0.00010957,2]
[335285059,1724071838677,-520.61647298,0.00010958,2]
[335285060,1724071838687,-154.69833824,0.00010958,2]
[335285061,1724071838696,-2166.25640825,0.00010958,2]
[335285062,1724071838705,-250.0,0.0001098,2]
[335285063,1724071838715,-250.0,0.00011009,2]
[335285064,1724071838724,-250.0,0.00011038,2]
[335285065,1724071838734,-250.0,0.00011067,2]
[335285066,1724071838743,-250.0,0.00011096,2]
[335285067,1724071838753,-250.0,0.00011125,2]
[335285068,1724071838762,-170.581208,0.00011315,2]
[335285069,1724071838771,-170.581208,0.00011318,2]
[335285070,1724071838780,-170.581208,0.00011321,2]
[335285071,1724071838789,-170.581208,0.00011324,2]
[335285072,1724071838798,-170.581208,0.00011327,2]
[335285073,1724071838808,-170.581208,0.0001133,2]
[335285074,1724071838818,-170.581208,0.00011333,2]
[335285075,1724071838827,-170.581208,0.00011336,2]
[335285076,1724071838836,-170.581208,0.00011339,2]
[335285077,1724071838845,-170.581208,0.00011342,2]
[335285078,1724071838855,-170.581208,0.00011345,2]
[335285079,1724071838865,-170.581208,0.00011348,2]
[335285080,1724071838874,-170.581208,0.00011351,2]
[335285081,1724071838884,-170.581208,0.00011354,2]
[335285082,1724071838893,-170.581208,0.00011357,2]
[335285083,1724071838903,-170.581208,0.0001136,2]
[335285084,1724071838912,-170.581208,0.00011363,2]
[335285085,1724071838922,-170.581208,0.00011366,2]
[335285086,1724071838931,-170.581208,0.00011368,2]
[335285087,1724071838941,-170.581208,0.00011371,2]
[335285088,1724071838950,-156.85654909,0.00011409,2]
[335285089,1724071838959,-2146.11113203,0.00011409,2]
[335285090,1724071838969,-154.69833824,0.00011409,2]
[335285091,1724071838978,-155.22212059,0.00011621,2]
[335285092,1724071838988,-154.77556307,0.00011621,2]
[335285093,1724071838998,-256.23174061,0.00011621,2]
[335285094,1724071839007,-192.47506614,0.00011621,2]
[335285095,1724071839017,-188.89072077,0.00011621,2]
[335285096,1724071839027,-569.55611374,0.00011621,2]
[335285097,1724071839037,-154.87224043,0.00011621,2]
[335285098,1724071839048,-154.69833824,0.00011621,2]
[335285099,1724071839060,-601.88445386,0.00011621,2]
[335285100,1724071839069,-533.92328189,0.00011621,2]
[335285101,1724071839081,-404.43330921,0.00011621,2]
[335285102,1724071839090,-261.03961162,0.00011621,2]
[335285103,1724071839100,-154.69833824,0.00011621,2]
[335285104,1724071839109,-154.71377951,0.00011621,2]
[335285105,1724071839119,-212.62782704,0.00011621,2]
[335285106,1724071839129,-154.7950553,0.00011621,2]
[335285107,1724071839138,-601.88445386,0.00011621,2]
[335285108,1724071839148,-155.68909977,0.00011621,2]
[335285109,1724071839160,-154.82900784,0.00011621,2]
[335285110,1724071839170,-195.66266863,0.00011621,2]
[335285111,1724071839179,-155.08933268,0.00011621,2]
[335285112,1724071839189,-19172.30476469,0.00011631,2]
[335285113,1724071839199,-160.44466579,0.00011712,2]
[335285114,1724071839209,-413.66267349,0.00011712,2]
[335285115,1724071839219,-155.63031058,0.00011712,2]
[335285116,1724071839229,-288.24477057,0.00011712,2]
[335285117,1724071839239,-280.35654095,0.00011712,2]
[335285118,1724071839250,-160.44466579,0.00011712,2]
[335285119,1724071839260,-200.0,0.00011712,2]
[335285120,1724071839271,-154.88017181,0.00011712,2]
[335285121,1724071839281,-154.69833824,0.00011712,2]
[335285122,1724071839291,-191.89440015,0.00011712,2]
[335285123,1724071839301,-413.66267349,0.00011712,2]
[335285124,1724071839310,-19546.02120518,0.00011712,2]
[335285125,1724071839320,-154.95324837,0.00011712,2]
[335285126,1724071839331,-269.93873618,0.00011731,7]
[335285127,1724071839341,-182.95360137,0.00011731,2]
[335285128,1724071839351,-154.69833824,0.00011731,2]
[335285129,1724071839361,-154.69833824,0.00011731,2]
[335285130,1724071839372,-154.79103211,0.00011731,2]
[335285131,1724071839382,-12893.40956978,0.00011759,2]
[335285132,1724071839393,-155.23918905,0.00011759,2]
[335285133,1724071839403,-521.29251267,0.00011759,2]
[335285134,1724071839413,-817.51538182,0.00011759,2]
[335285135,1724071839424,-199.11177021,0.00011759,2]
[335285136,1724071839433,-311.68966521,0.00011759,2]
[335285137,1724071839443,-342.65845262,0.00011759,2]
[335285138,1724071839452,-72503.9122399,0.000119,2]
[335285140,1724071839462,-72503.9122399,0.00011977,2]
[335285142,1724071839471,-8844.39705201,0.00011987,2]
[335285143,1724071839480,-9659.27545044,0.00011987,2]
[335285144,1724071839490,-7013.41255393,0.00011999,2]
[335285145,1724071839500,-420.0,0.00012041,2]
[335285146,1724071839509,-420.0,0.00012053,2]
[335285147,1724071839519,-19172.30476467,0.00012123,2]
[335285148,1724071839529,-3092.64278727,0.00012356,2]
[335285149,1724071839540,-2712.58332809,0.00012356,2]
[335285150,1724071839549,-1766.47659697,0.00012516,2]
[335285151,1724071839559,-1613.45959463,0.00012551,2]
[335285152,1724071839569,-19172.30476467,0.00012615,2]
[335285153,1724071839578,-850.5788145,0.00012689,2]
[335285154,1724071839587,-200.0,0.00012729,2]
[335285155,1724071839597,-72503.9122399,0.00012772,2]
[335285156,1724071839608,-1500.0,0.00012779,2]
[335285157,1724071839618,-210.28741582,0.00012898,2]
[335285158,1724071839628,-210.23989812,0.00012898,2]
[335285160,1724071839637,-4941.9170885,0.000129,2]
[335285161,1724071839647,-223.52112672,0.00012934,2]
[335285162,1724071839658,-223.52112672,0.00012934,2]
[335285163,1724071839667,-493.25192424,0.0001295,2]
[335285164,1724071839677,-544.00882293,0.00012971,2]
[335285165,1724071839687,-190.07446844,0.00012971,2]
[335285166,1724071839697,-190.07446844,0.00012971,2]
[335285167,1724071839707,-2221.47647721,0.00012971,3]
[335285168,1724071839717,-157.09608348,0.00012985,2]
[335285169,1724071839726,-157.09608348,0.00012985,2]
[335285170,1724071839736,-688.676981,0.00012985,2]
[335285171,1724071839746,-811.38667937,0.00012989,2]
[335285172,1724071839756,-196.81150092,0.00012999,2]
[335285173,1724071839766,-320.27103328,0.00012999,2]
[335285174,1724071839775,-196.81150092,0.00012999,2]
[335285175,1724071839784,-320.27103328,0.00012999,2]
[335285176,1724071839793,-862.44048895,0.00013,2]
[335285177,1724071839802,-185.75362197,0.00013,2]
[335285178,1724071839813,-500.0,0.00013,2]